[Event "2026 European Womens Championship"]
[Site "Batumi, GE"]
[Date "2026.05.26"]
[Round "2"]
[White "Sieber, Fiona"]
[Black "Klek, Hanna Marie"]
[Result "1/2-1/2"]
[Board "12"]
[TimeControl "5400+30"]
[WhiteFideId "12902373"]
[BlackFideId "24670057"]
[WhiteElo "2224"]
[BlackElo "2369"]
[WhiteTitle "WGM"]
[BlackTitle "WGM"]
[WhiteClock "0:01:43"]
[BlackClock "0:03:54"]
[Variant "Standard"]

1. c4 {[%clk 1:30:58]}  e5 {[%clk 1:30:54]} 2. Nc3 {[%clk 1:31:23]}  Bb4 {[%clk 1:31:12]} 3. Nd5 {[%clk 1:31:47]}  a5 {[%clk 1:31:32]}
4. a3 {[%clk 1:28:41]}  Bc5 {[%clk 1:31:50]} 5. e3 {[%clk 1:28:58]}  d6 {[%clk 1:31:43]} 6. d4 {[%clk 1:26:22]}  Ba7 {[%clk 1:31:40]}
7. Nc3 {[%clk 1:19:57]}  Nf6 {[%clk 1:26:18]} 8. dxe5 {[%clk 1:18:09]}  dxe5 {[%clk 1:26:41]} 9. Qxd8+ {[%clk 1:18:34]}  Kxd8 {[%clk 1:27:05]}
10. Nf3 {[%clk 1:18:15]}  Nc6 {[%clk 1:14:18]} 11. b3 {[%clk 1:14:47]}  Bf5 {[%clk 1:12:28]} 12. Bb2 {[%clk 1:14:17]}  Nd7 {[%clk 1:05:19]}
13. O-O-O {[%clk 1:13:18]}  Kc8 {[%clk 1:04:02]} 14. Nh4 {[%clk 0:59:32]}  Be6 {[%clk 0:56:37]} 15. Ne4 {[%clk 0:55:31]}  h6 {[%clk 0:49:10]}
16. h3 {[%clk 0:49:45]}  f5 {[%clk 0:45:41]} 17. Nd2 {[%clk 0:46:22]}  Re8 {[%clk 0:33:52]} 18. Nhf3 {[%clk 0:41:18]}  g5 {[%clk 0:25:37]}
19. Ne1 {[%clk 0:38:18]}  f4 {[%clk 0:22:27]} 20. Nc2 {[%clk 0:36:48]}  Bf5 {[%clk 0:21:01]} 21. e4 {[%clk 0:35:13]}  Bg6 {[%clk 0:20:32]}
22. f3 {[%clk 0:35:36]}  Nf6 {[%clk 0:20:15]} 23. Be2 {[%clk 0:30:29]}  Nh5 {[%clk 0:18:45]} 24. Nf1 {[%clk 0:30:15]}  Bf2 {[%clk 0:18:27]}
25. Rd2 {[%clk 0:27:54]}  Rd8 {[%clk 0:16:59]} 26. Bd3 {[%clk 0:27:53]}  Bd4 {[%clk 0:16:06]} 27. h4 {[%clk 0:26:03]}  b6 {[%clk 0:13:13]}
28. Nxd4 {[%clk 0:19:52]}  Nxd4 {[%clk 0:13:28]} 29. Bxd4 {[%clk 0:19:46]}  Rxd4 {[%clk 0:13:47]} 30. Bc2 {[%clk 0:19:37]}  Rxd2 {[%clk 0:12:57]}
31. Kxd2 {[%clk 0:19:40]}  Kd7 {[%clk 0:11:39]} 32. hxg5 {[%clk 0:18:35]}  hxg5 {[%clk 0:11:14]} 33. Rh3 {[%clk 0:18:46]}  Rf8 {[%clk 0:08:50]}
34. Nh2 {[%clk 0:16:37]}  Kd6 {[%clk 0:07:06]} 35. Ng4 {[%clk 0:16:16]}  Rf7 {[%clk 0:06:52]} 36. Kc3 {[%clk 0:16:11]}  Rh7 {[%clk 0:05:51]}
37. Rh1 {[%clk 0:15:07]}  Nf6 {[%clk 0:04:54]} 38. Rxh7 {[%clk 0:11:46]}  Nxh7 {[%clk 0:05:19]} 39. c5+ {[%clk 0:03:02]}  bxc5 {[%clk 0:05:34]}
40. Bd3 {[%clk 0:01:43]}  Bh5 {[%clk 0:03:48]} 41. Nh6 {[%clk 0:29:54]}  Nf6 {[%clk 0:30:34]} 42. Kc4 {[%clk 0:27:17]}  Kc6 {[%clk 0:28:35]}
43. Nf5 {[%clk 0:23:08]}  Bf7+ {[%clk 0:23:31]} 44. Kc3 {[%clk 0:23:32]}  Be6 {[%clk 0:23:15]} 45. g4 {[%clk 0:21:53]}  fxg3 {[%clk 0:16:42]}
46. Nxg3 {[%clk 0:22:13]}  Ne8 {[%clk 0:15:37]} 47. Nf5 {[%clk 0:18:54]}  Bxf5 {[%clk 0:14:47]} 48. exf5 {[%clk 0:19:20]}  Nd6 {[%clk 0:13:17]}
49. f6 {[%clk 0:10:53]}  Kd7 {[%clk 0:13:34]} 50. f7 {[%clk 0:10:56]}  Ke7 {[%clk 0:12:32]} 51. Bg6 {[%clk 0:10:55]}  e4 {[%clk 0:11:49]}
52. fxe4 {[%clk 0:07:05]}  Nxf7 {[%clk 0:12:09]} 53. Bh5 {[%clk 0:04:49]}  Ne5 {[%clk 0:12:29]} 54. Be2 {[%clk 0:03:28]}  g4 {[%clk 0:12:00]}
55. Kd2 {[%clk 0:02:56]}  Kf6 {[%clk 0:10:37]} 56. Ke3 {[%clk 0:03:24]}  Kg5 {[%clk 0:10:46]} 57. Bf1 {[%clk 0:03:07]}  Nf3 {[%clk 0:08:35]}
58. Bd3 {[%clk 0:00:51]}  Ne1 {[%clk 0:05:11]} 59. Bb1 {[%clk 0:00:55]}  g3 {[%clk 0:04:37]} 60. e5 {[%clk 0:01:02]}  g2 {[%clk 0:03:52]}
61. Kf2 {[%clk 0:01:29]}  Nf3 {[%clk 0:03:32]} 62. Kxg2 {[%clk 0:01:54]}  Nxe5 {[%clk 0:03:58]} 63. Kf2 {[%clk 0:01:58]}  Kf4 {[%clk 0:04:04]}
64. Ke2 {[%clk 0:02:21]}  c4 {[%clk 0:04:06]} 65. b4 {[%clk 0:00:56]}  axb4 {[%clk 0:04:13]} 66. axb4 {[%clk 0:01:25]}  Nc6 {[%clk 0:04:15]}
67. Kd2 {[%clk 0:01:29]}  Ke5 {[%clk 0:03:44]} 68. Kc3 {[%clk 0:01:54]}  Kd5 {[%clk 0:03:54]} 69. Bg6 {[%clk 0:01:43]}  Ke5 {[%clk 0:03:19]} 1/2-1/2

[Event "2026 European Womens Championship"]
[Site "Batumi, GE"]
[Date "2026.05.26"]
[Round "2"]
[White "Beydullayeva, Govhar"]
[Black "Mamedjarova, Turkan"]
[Result "1/2-1/2"]
[Board "13"]
[TimeControl "5400+30"]
[WhiteFideId "13413015"]
[BlackFideId "13402005"]
[WhiteElo "2368"]
[BlackElo "2222"]
[WhiteTitle "WGM"]
[BlackTitle "WGM"]
[WhiteClock "0:07:23"]
[BlackClock "0:15:27"]
[Variant "Standard"]

1. d4 {[%clk 1:30:57]}  Nf6 {[%clk 1:30:54]} 2. c4 {[%clk 1:31:21]}  e6 {[%clk 1:30:52]} 3. Nc3 {[%clk 1:31:40]}  Bb4 {[%clk 1:31:09]}
4. e3 {[%clk 1:32:06]}  b6 {[%clk 1:29:45]} 5. Nge2 {[%clk 1:29:07]}  Bb7 {[%clk 1:29:43]} 6. a3 {[%clk 1:29:23]}  Bxc3+ {[%clk 1:24:14]}
7. Nxc3 {[%clk 1:29:29]}  d5 {[%clk 1:20:08]} 8. f3 {[%clk 1:16:27]}  O-O {[%clk 1:19:30]} 9. cxd5 {[%clk 1:11:17]}  Nxd5 {[%clk 1:07:13]}
10. Nxd5 {[%clk 1:07:09]}  exd5 {[%clk 1:07:09]} 11. Bd3 {[%clk 1:07:02]}  Qh4+ {[%clk 1:04:30]} 12. g3 {[%clk 1:06:34]}  Qe7 {[%clk 1:04:42]}
13. O-O {[%clk 1:06:03]}  c5 {[%clk 1:02:34]} 14. dxc5 {[%clk 0:55:11]}  bxc5 {[%clk 1:02:00]} 15. Qc2 {[%clk 0:47:46]}  h6 {[%clk 1:01:16]}
16. Bd2 {[%clk 0:47:25]}  Nd7 {[%clk 0:57:13]} 17. Rae1 {[%clk 0:37:48]}  Qd6 {[%clk 0:46:41]} 18. Bc3 {[%clk 0:34:40]}  Rfe8 {[%clk 0:45:17]}
19. Qf2 {[%clk 0:24:08]}  Re7 {[%clk 0:36:27]} 20. b4 {[%clk 0:23:45]}  Rae8 {[%clk 0:27:22]} 21. bxc5 {[%clk 0:22:44]}  Nxc5 {[%clk 0:26:39]}
22. Bb5 {[%clk 0:22:47]}  Bc6 {[%clk 0:25:07]} 23. Bxc6 {[%clk 0:20:57]}  Qxc6 {[%clk 0:24:40]} 24. Qd2 {[%clk 0:20:00]}  Rd7 {[%clk 0:21:09]}
25. Rb1 {[%clk 0:19:10]}  Na4 {[%clk 0:20:25]} 26. Bd4 {[%clk 0:18:19]}  Nb6 {[%clk 0:20:21]} 27. Bxb6 {[%clk 0:17:44]}  axb6 {[%clk 0:20:43]}
28. Qd4 {[%clk 0:14:00]}  Qc5 {[%clk 0:12:58]} 29. Rb3 {[%clk 0:09:26]}  Qxd4 {[%clk 0:15:09]} 30. exd4 {[%clk 0:09:52]}  Ra8 {[%clk 0:15:27]}
31. Ra1 {[%clk 0:07:23]} 1/2-1/2

[Event "2026 European Womens Championship"]
[Site "Batumi, GE"]
[Date "2026.05.26"]
[Round "2"]
[White "Rodshtein, Tereza"]
[Black "Mkrtchian, Lilit"]
[Result "1/2-1/2"]
[Board "14"]
[TimeControl "5400+30"]
[WhiteFideId "325449"]
[BlackFideId "13300601"]
[WhiteElo "2218"]
[BlackElo "2366"]
[WhiteTitle "WGM"]
[BlackTitle "IM"]
[WhiteClock "0:21:46"]
[BlackClock "0:26:19"]
[Variant "Standard"]

1. e4 {[%clk 1:30:49]}  d6 {[%clk 1:30:31]} 2. d4 {[%clk 1:30:58]}  Nf6 {[%clk 1:30:52]} 3. Nc3 {[%clk 1:30:49]}  e5 {[%clk 1:31:05]}
4. Nf3 {[%clk 1:30:07]}  Nbd7 {[%clk 1:31:23]} 5. Bc4 {[%clk 1:29:30]}  Be7 {[%clk 1:31:43]} 6. a4 {[%clk 1:27:24]}  O-O {[%clk 1:31:45]}
7. O-O {[%clk 1:26:20]}  exd4 {[%clk 1:31:13]} 8. Qxd4 {[%clk 1:22:21]}  Nc5 {[%clk 1:30:49]} 9. h3 {[%clk 1:07:31]}  Be6 {[%clk 1:27:46]}
10. Rd1 {[%clk 1:00:24]}  Nfd7 {[%clk 1:19:33]} 11. Bxe6 {[%clk 0:49:42]}  Nxe6 {[%clk 1:16:33]} 12. Qc4 {[%clk 0:49:36]}  c6 {[%clk 1:13:37]}
13. Be3 {[%clk 0:48:34]}  Re8 {[%clk 0:54:01]} 14. Nd4 {[%clk 0:41:15]}  Ne5 {[%clk 0:50:09]} 15. Qe2 {[%clk 0:40:26]}  Nxd4 {[%clk 0:45:25]}
16. Rxd4 {[%clk 0:35:53]}  Qc7 {[%clk 0:44:21]} 17. Rad1 {[%clk 0:35:41]}  a6 {[%clk 0:41:39]} 18. Bf4 {[%clk 0:31:26]}  Bf8 {[%clk 0:39:05]}
19. Qe3 {[%clk 0:26:18]}  b5 {[%clk 0:38:14]} 20. Qg3 {[%clk 0:26:23]}  Re6 {[%clk 0:32:15]} 21. Kh1 {[%clk 0:22:52]}  Rb8 {[%clk 0:26:10]}
22. b3 {[%clk 0:22:23]}  Rg6 {[%clk 0:25:03]} 23. Qh2 {[%clk 0:22:29]}  Re6 {[%clk 0:25:26]} 24. Qg3 {[%clk 0:22:53]}  Rg6 {[%clk 0:25:52]}
25. Qh2 {[%clk 0:23:19]}  Re6 {[%clk 0:26:19]} 26. Qg3 {[%clk 0:21:46]} 1/2-1/2

[Event "2026 European Womens Championship"]
[Site "Batumi, GE"]
[Date "2026.05.26"]
[Round "2"]
[White "Mkrtchyan, Mariam"]
[Black "Kochavi, Dana"]
[Result "1/2-1/2"]
[Board "15"]
[TimeControl "5400+30"]
[WhiteFideId "13310828"]
[BlackFideId "2837137"]
[WhiteElo "2365"]
[BlackElo "2209"]
[WhiteTitle "WGM"]
[BlackTitle "FM"]
[WhiteClock "0:01:46"]
[BlackClock "0:13:38"]
[Variant "Standard"]

1. e4 {[%clk 1:30:56]}  c5 {[%clk 1:30:55]} 2. Nc3 {[%clk 1:31:12]}  d6 {[%clk 1:31:08]} 3. d4 {[%clk 1:29:49]}  cxd4 {[%clk 1:31:34]}
4. Qxd4 {[%clk 1:30:11]}  Nc6 {[%clk 1:32:01]} 5. Qd2 {[%clk 1:30:20]}  g6 {[%clk 1:29:57]} 6. b3 {[%clk 1:30:28]}  Bg7 {[%clk 1:21:25]}
7. Bb2 {[%clk 1:30:00]}  Nf6 {[%clk 1:21:48]} 8. O-O-O {[%clk 1:28:58]}  Be6 {[%clk 1:19:10]} 9. f4 {[%clk 1:23:56]}  Rc8 {[%clk 1:11:29]}
10. Kb1 {[%clk 1:16:54]}  Qa5 {[%clk 0:59:50]} 11. Nf3 {[%clk 1:03:27]}  Nb4 {[%clk 0:48:21]} 12. Ng5 {[%clk 0:39:57]}  Bg4 {[%clk 0:42:45]}
13. a3 {[%clk 0:24:52]}  Bxd1 {[%clk 0:32:53]} 14. axb4 {[%clk 0:25:16]}  Qxb4 {[%clk 0:33:17]} 15. Qxd1 {[%clk 0:12:02]}  Rxc3 {[%clk 0:32:33]}
16. Bxc3 {[%clk 0:12:26]}  Qxc3 {[%clk 0:32:55]} 17. Bb5+ {[%clk 0:12:49]}  Kf8 {[%clk 0:33:05]} 18. e5 {[%clk 0:13:16]}  h6 {[%clk 0:33:05]}
19. Nf3 {[%clk 0:13:35]}  Ne8 {[%clk 0:31:07]} 20. Qd5 {[%clk 0:11:36]}  Qc7 {[%clk 0:24:44]} 21. Rd1 {[%clk 0:11:29]}  e6 {[%clk 0:23:36]}
22. Qd4 {[%clk 0:10:54]}  d5 {[%clk 0:18:25]} 23. Qxa7 {[%clk 0:10:58]}  b6 {[%clk 0:18:45]} 24. Qa8 {[%clk 0:06:20]}  Ke7 {[%clk 0:19:03]}
25. Nd4 {[%clk 0:06:17]}  f6 {[%clk 0:16:18]} 26. Nc6+ {[%clk 0:01:50]}  Kf8 {[%clk 0:16:09]} 27. Rf1 {[%clk 0:01:06]}  Qf7 {[%clk 0:14:45]}
28. Qa3+ {[%clk 0:01:16]}  Kg8 {[%clk 0:15:03]} 29. Nd8 {[%clk 0:01:34]}  Qf8 {[%clk 0:14:10]} 30. Qxf8+ {[%clk 0:01:37]}  Kxf8 {[%clk 0:14:36]}
31. Bxe8 {[%clk 0:01:04]}  Kxe8 {[%clk 0:15:00]} 32. Nxe6 {[%clk 0:01:26]}  Kf7 {[%clk 0:15:27]} 33. Nc7 {[%clk 0:01:25]}  Rd8 {[%clk 0:15:47]}
34. Rd1 {[%clk 0:00:34]}  d4 {[%clk 0:16:12]} 35. exf6 {[%clk 0:00:40]}  Bxf6 {[%clk 0:16:13]} 36. c4 {[%clk 0:00:40]}  dxc3 {[%clk 0:15:54]}
37. Rxd8 {[%clk 0:00:55]}  Bxd8 {[%clk 0:16:18]} 38. Nd5 {[%clk 0:01:08]}  Ke6 {[%clk 0:16:43]} 39. Nxc3 {[%clk 0:01:14]}  Kf5 {[%clk 0:17:01]}
40. Ne2 {[%clk 0:00:43]}  Ke4 {[%clk 0:16:59]} 41. Kc2 {[%clk 0:00:43]}  Ke3 {[%clk 0:16:09]} 42. Kd1 {[%clk 0:27:28]}  h5 {[%clk 0:44:41]}
43. g3 {[%clk 0:21:30]}  Bf6 {[%clk 0:43:55]} 44. Ke1 {[%clk 0:09:39]}  Kd3 {[%clk 0:34:54]} 45. f5 {[%clk 0:03:22]}  g5 {[%clk 0:34:34]}
46. h4 {[%clk 0:02:59]}  gxh4 {[%clk 0:27:06]} 47. Nf4+ {[%clk 0:03:27]}  Ke4 {[%clk 0:27:17]} 48. Nxh5 {[%clk 0:03:51]}  Be5 {[%clk 0:11:41]}
49. f6 {[%clk 0:01:53]}  Kf5 {[%clk 0:12:06]} 50. f7 {[%clk 0:01:52]}  Bd6 {[%clk 0:12:30]} 51. gxh4 {[%clk 0:01:49]}  Kg6 {[%clk 0:12:54]}
52. f8=Q {[%clk 0:00:35]}  Bxf8 {[%clk 0:13:20]} 53. Ng3 {[%clk 0:00:41]}  Be7 {[%clk 0:12:46]} 54. h5+ {[%clk 0:01:07]}  Kg5 {[%clk 0:13:08]}
55. Kf2 {[%clk 0:01:29]}  Kg4 {[%clk 0:12:57]} 56. Ne4 {[%clk 0:00:52]}  Kxh5 {[%clk 0:13:16]} 57. Ke3 {[%clk 0:01:19]}  Kg4 {[%clk 0:13:31]}
58. Kd4 {[%clk 0:01:30]}  Kf4 {[%clk 0:13:00]} 59. Nd2 {[%clk 0:00:55]}  Bc5+ {[%clk 0:12:59]} 60. Kc4 {[%clk 0:00:52]}  Ke3 {[%clk 0:13:03]}
61. Nb1 {[%clk 0:01:08]}  Ke2 {[%clk 0:12:55]} 62. Nc3+ {[%clk 0:01:12]}  Kd2 {[%clk 0:13:19]} 63. Ne4+ {[%clk 0:00:55]}  Kc2 {[%clk 0:13:43]}
64. Nc3 {[%clk 0:00:41]}  Bf8 {[%clk 0:13:36]} 65. Nb5 {[%clk 0:00:58]}  Bc5 {[%clk 0:12:44]} 66. Nc7 {[%clk 0:01:06]}  Bd6 {[%clk 0:12:48]}
67. Nd5 {[%clk 0:01:19]}  b5+ {[%clk 0:13:12]} 68. Kxb5 {[%clk 0:01:46]}  Kxb3 {[%clk 0:13:38]} 1/2-1/2

[Event "2026 European Womens Championship"]
[Site "Batumi, GE"]
[Date "2026.05.26"]
[Round "2"]
[White "Tirpan, Ceren"]
[Black "Bivol, Alina"]
[Result "1/2-1/2"]
[Board "16"]
[TimeControl "5400+30"]
[WhiteFideId "26385309"]
[BlackFideId "4100123"]
[WhiteElo "2209"]
[BlackElo "2361"]
[WhiteTitle "WFM"]
[BlackTitle "IM"]
[WhiteClock "0:04:47"]
[BlackClock "0:08:38"]
[Variant "Standard"]

1. c4 {[%clk 1:30:57]}  e6 {[%clk 1:30:54]} 2. g3 {[%clk 1:31:22]}  d5 {[%clk 1:30:44]} 3. Bg2 {[%clk 1:31:47]}  d4 {[%clk 1:29:17]}
4. Nf3 {[%clk 1:32:09]}  Nc6 {[%clk 1:28:45]} 5. O-O {[%clk 1:31:51]}  Nh6 {[%clk 1:27:51]} 6. d3 {[%clk 1:24:18]}  Nf5 {[%clk 1:27:04]}
7. Na3 {[%clk 1:15:42]}  Bxa3 {[%clk 1:23:52]} 8. bxa3 {[%clk 1:16:03]}  O-O {[%clk 1:22:21]} 9. Rb1 {[%clk 1:03:46]}  Rb8 {[%clk 1:20:48]}
10. Nd2 {[%clk 0:59:33]}  Bd7 {[%clk 1:17:43]} 11. Ne4 {[%clk 0:55:17]}  b6 {[%clk 1:15:44]} 12. Bd2 {[%clk 0:52:51]}  e5 {[%clk 1:12:59]}
13. a4 {[%clk 0:44:19]}  Nfe7 {[%clk 1:06:05]} 14. a5 {[%clk 0:28:05]}  f5 {[%clk 1:01:13]} 15. Ng5 {[%clk 0:28:27]}  h6 {[%clk 1:01:03]}
16. Nf3 {[%clk 0:28:15]}  bxa5 {[%clk 1:00:29]} 17. Qc2 {[%clk 0:26:00]}  Be8 {[%clk 0:46:18]} 18. Rxb8 {[%clk 0:19:28]}  Qxb8 {[%clk 0:46:46]}
19. e3 {[%clk 0:19:38]}  Bh5 {[%clk 0:44:21]} 20. Rb1 {[%clk 0:17:32]}  Qd8 {[%clk 0:42:26]} 21. Re1 {[%clk 0:14:31]}  dxe3 {[%clk 0:40:12]}
22. fxe3 {[%clk 0:13:27]}  Ng6 {[%clk 0:32:10]} 23. Rf1 {[%clk 0:08:35]}  f4 {[%clk 0:29:33]} 24. Ne1 {[%clk 0:08:34]}  fxe3 {[%clk 0:29:06]}
25. Rxf8+ {[%clk 0:08:58]}  Qxf8 {[%clk 0:25:21]} 26. Bxe3 {[%clk 0:09:22]}  Nd4 {[%clk 0:23:56]} 27. Bd5+ {[%clk 0:09:32]}  Kh8 {[%clk 0:23:50]}
28. Qf2 {[%clk 0:09:52]}  Ne2+ {[%clk 0:22:11]} 29. Kg2 {[%clk 0:10:13]}  Qxf2+ {[%clk 0:20:44]} 30. Kxf2 {[%clk 0:10:30]}  Nc3 {[%clk 0:20:47]}
31. Bxa7 {[%clk 0:10:05]}  Nxd5 {[%clk 0:17:42]} 32. cxd5 {[%clk 0:10:29]}  Ne7 {[%clk 0:17:57]} 33. Nf3 {[%clk 0:05:23]}  Nxd5 {[%clk 0:15:48]}
34. Nxe5 {[%clk 0:05:39]}  Kg8 {[%clk 0:14:01]} 35. Bc5 {[%clk 0:05:49]}  Be8 {[%clk 0:12:25]} 36. a3 {[%clk 0:05:45]}  g5 {[%clk 0:11:45]}
37. Bd4 {[%clk 0:05:32]}  a4 {[%clk 0:11:21]} 38. Kf3 {[%clk 0:05:23]}  Nf6 {[%clk 0:11:17]} 39. h4 {[%clk 0:05:00]}  gxh4 {[%clk 0:08:07]}
40. gxh4 {[%clk 0:05:24]}  Nd7 {[%clk 0:08:25]} 41. Kf4 {[%clk 0:04:47]}  Nxe5 {[%clk 0:08:38]} 42. Ke4 {[%clk 0:04:23]} 1/2-1/2

[Event "2026 European Womens Championship"]
[Site "Batumi, GE"]
[Date "2026.05.26"]
[Round "2"]
[White "Bashylina, Luisa"]
[Black "Milliet, Sophie"]
[Result "1/2-1/2"]
[Board "17"]
[TimeControl "5400+30"]
[WhiteFideId "12983292"]
[BlackFideId "623725"]
[WhiteElo "2208"]
[BlackElo "2361"]
[WhiteTitle "WFM"]
[BlackTitle "IM"]
[WhiteClock "0:12:56"]
[BlackClock "0:05:50"]
[Variant "Standard"]

1. d4 {[%clk 1:30:58]}  Nf6 {[%clk 1:30:53]} 2. c4 {[%clk 1:31:24]}  e6 {[%clk 1:31:20]} 3. Nc3 {[%clk 1:31:51]}  Bb4 {[%clk 1:31:45]}
4. Qc2 {[%clk 1:32:18]}  O-O {[%clk 1:32:00]} 5. e4 {[%clk 1:32:45]}  d5 {[%clk 1:32:17]} 6. e5 {[%clk 1:33:10]}  Ne4 {[%clk 1:32:41]}
7. Bd3 {[%clk 1:33:37]}  c5 {[%clk 1:33:03]} 8. a3 {[%clk 1:33:59]}  Bxc3+ {[%clk 1:27:43]} 9. bxc3 {[%clk 1:34:24]}  cxd4 {[%clk 1:20:46]}
10. cxd4 {[%clk 1:34:30]}  Bd7 {[%clk 1:19:25]} 11. Ne2 {[%clk 1:31:47]}  Qa5+ {[%clk 1:19:19]} 12. Kf1 {[%clk 1:30:30]}  Ba4 {[%clk 1:13:07]}
13. Qb2 {[%clk 1:28:44]}  f6 {[%clk 1:11:06]} 14. Bxe4 {[%clk 1:24:31]}  dxe4 {[%clk 1:11:32]} 15. exf6 {[%clk 1:24:48]}  gxf6 {[%clk 0:59:56]}
16. Qxb7 {[%clk 1:17:00]}  Bc6 {[%clk 0:58:33]} 17. Qe7 {[%clk 1:15:42]}  Bd7 {[%clk 0:57:58]} 18. h4 {[%clk 1:06:44]}  Rf7 {[%clk 0:57:10]}
19. Qb4 {[%clk 1:06:11]}  Nc6 {[%clk 0:56:00]} 20. Qd6 {[%clk 0:57:28]}  Qa4 {[%clk 0:52:07]} 21. Bh6 {[%clk 0:55:30]}  Qxc4 {[%clk 0:51:56]}
22. Rc1 {[%clk 0:44:56]}  Qd5 {[%clk 0:51:13]} 23. Qxd5 {[%clk 0:44:02]}  exd5 {[%clk 0:51:39]} 24. Rc5 {[%clk 0:43:34]}  Ne7 {[%clk 0:50:43]}
25. Nc3 {[%clk 0:38:27]}  Rb8 {[%clk 0:45:52]} 26. Kg1 {[%clk 0:36:03]}  Be6 {[%clk 0:35:11]} 27. Kh2 {[%clk 0:29:20]}  Nf5 {[%clk 0:15:42]}
28. Be3 {[%clk 0:26:33]}  Rb3 {[%clk 0:11:16]} 29. a4 {[%clk 0:23:05]}  Rd7 {[%clk 0:11:08]} 30. h5 {[%clk 0:22:03]}  Kf7 {[%clk 0:10:27]}
31. a5 {[%clk 0:19:02]}  Ng7 {[%clk 0:09:22]} 32. Kg3 {[%clk 0:18:00]}  Rb4 {[%clk 0:05:50]} 33. Kf4 {[%clk 0:15:37]}  Nf5 {[%clk 0:05:30]}
34. Rd1 {[%clk 0:15:15]}  Nh4 {[%clk 0:04:44]} 35. Kg3 {[%clk 0:15:03]}  Nf5+ {[%clk 0:05:09]} 36. Kf4 {[%clk 0:15:24]}  Nh4 {[%clk 0:05:31]}
37. Kg3 {[%clk 0:12:56]}  Nf5+ {[%clk 0:05:50]} 1/2-1/2

[Event "2026 European Womens Championship"]
[Site "Batumi, GE"]
[Date "2026.05.26"]
[Round "2"]
[White "Socko, Monika"]
[Black "Ibrahimova, Sabina"]
[Result "1-0"]
[Board "18"]
[TimeControl "5400+30"]
[WhiteFideId "1106619"]
[BlackFideId "13403893"]
[WhiteElo "2355"]
[BlackElo "2205"]
[WhiteTitle "GM"]
[BlackTitle "WIM"]
[WhiteClock "0:17:15"]
[BlackClock "0:08:24"]
[Variant "Standard"]

1. d4 {[%clk 1:30:57]}  Nf6 {[%clk 1:30:14]} 2. c4 {[%clk 1:31:18]}  e6 {[%clk 1:30:30]} 3. Nc3 {[%clk 1:29:49]}  Bb4 {[%clk 1:30:18]}
4. e3 {[%clk 1:28:59]}  O-O {[%clk 1:30:11]} 5. Nge2 {[%clk 1:29:25]}  c5 {[%clk 1:24:22]} 6. a3 {[%clk 1:24:38]}  cxd4 {[%clk 1:23:17]}
7. axb4 {[%clk 1:21:23]}  dxc3 {[%clk 1:23:18]} 8. Nxc3 {[%clk 1:20:59]}  d5 {[%clk 1:22:57]} 9. b3 {[%clk 1:21:02]}  Re8 {[%clk 0:59:39]}
10. Be2 {[%clk 1:19:13]}  b6 {[%clk 0:47:38]} 11. O-O {[%clk 1:15:35]}  Bb7 {[%clk 0:43:26]} 12. Bb2 {[%clk 1:04:04]}  Qe7 {[%clk 0:33:15]}
13. b5 {[%clk 0:59:44]}  Nbd7 {[%clk 0:27:58]} 14. Ra3 {[%clk 0:59:23]}  Qc5 {[%clk 0:16:38]} 15. Ra4 {[%clk 0:48:53]}  dxc4 {[%clk 0:11:27]}
16. Rxc4 {[%clk 0:49:15]}  Qg5 {[%clk 0:11:40]} 17. e4 {[%clk 0:48:58]}  Nc5 {[%clk 0:10:12]} 18. Bc1 {[%clk 0:43:21]}  Qg6 {[%clk 0:09:53]}
19. f3 {[%clk 0:43:03]}  e5 {[%clk 0:05:34]} 20. Be3 {[%clk 0:38:42]}  Rad8 {[%clk 0:03:14]} 21. Qa1 {[%clk 0:33:11]}  Nxb3 {[%clk 0:03:14]}
22. Qxa7 {[%clk 0:31:14]}  Bc8 {[%clk 0:03:36]} 23. Qxb6 {[%clk 0:27:28]}  Bh3 {[%clk 0:03:33]} 24. Rf2 {[%clk 0:25:31]}  Ra8 {[%clk 0:02:19]}
25. Ra4 {[%clk 0:21:59]}  Rab8 {[%clk 0:01:28]} 26. Qa7 {[%clk 0:20:40]}  Rbd8 {[%clk 0:00:46]} 27. b6 {[%clk 0:17:40]}  Nd4 {[%clk 0:01:04]}
28. b7 {[%clk 0:17:05]}  Nxe2+ {[%clk 0:00:53]} 29. Rxe2 {[%clk 0:17:34]}  Nd7 {[%clk 0:00:52]} 30. Ra6 {[%clk 0:15:10]}  Be6 {[%clk 0:01:13]}
31. Rd6 {[%clk 0:14:35]}  Rb8 {[%clk 0:01:07]} 32. Red2 {[%clk 0:14:11]}  Nf8 {[%clk 0:01:10]} 33. Qa6 {[%clk 0:10:07]}  Qh5 {[%clk 0:00:44]}
34. Ba7 {[%clk 0:09:08]}  Qh4 {[%clk 0:01:08]} 35. g3 {[%clk 0:08:22]}  Qe7 {[%clk 0:01:14]} 36. Bxb8 {[%clk 0:06:41]}  Rxb8 {[%clk 0:01:40]}
37. Rb2 {[%clk 0:06:41]}  Qc7 {[%clk 0:01:57]} 38. Qc6 {[%clk 0:04:11]}  Qa5 {[%clk 0:02:12]} 39. Kg2 {[%clk 0:03:29]}  h5 {[%clk 0:01:35]}
40. h4 {[%clk 0:02:16]}  Kh7 {[%clk 0:01:37]} 41. Rdd2 {[%clk 0:01:03]}  Ng6 {[%clk 0:25:40]} 42. Qd6 {[%clk 0:24:49]}  Rxb7 {[%clk 0:24:50]}
43. Rxb7 {[%clk 0:24:57]}  Qxc3 {[%clk 0:25:15]} 44. Qd3 {[%clk 0:24:16]}  Qa5 {[%clk 0:19:32]} 45. Rbb2 {[%clk 0:23:19]}  Qa7 {[%clk 0:18:11]}
46. Qd8 {[%clk 0:22:43]}  f6 {[%clk 0:13:16]} 47. Qb6 {[%clk 0:21:59]}  Qf7 {[%clk 0:12:37]} 48. Rd6 {[%clk 0:21:26]}  Nf8 {[%clk 0:10:16]}
49. Qb7 {[%clk 0:17:03]}  Bd7 {[%clk 0:08:04]} 50. Kh2 {[%clk 0:17:22]}  Qe8 {[%clk 0:08:24]} 51. Qc7 {[%clk 0:17:15]} 1-0